Cogmind - Beta 13 @@@ ROGUE MODE // 2024.05.03 @ 16:40:02 Player: Trantor Result: Self-destructed Performance ------------- Evolutions (1) 500 Regions Visited (3) 600 Robots Destroyed (30) 150 Value Destroyed (616) 616 Prototype IDs (2) 40 Alien Tech Used (0) 0 Bonus (0) 0 TOTAL SCORE: 1906 Bonus ------- None Cogmind --------- Core Integrity 343/400 Matter 187/300 Energy 250/250 System Corruption 0% Temperature Warm (187) Movement Rolling (105) Ox1 Location -9/Materials Parts ------- > --- POWER (1) -------- Ion Engine > --- PROPULSION (3) --- Armored Wheel Armored Wheel Armored Wheel > --- UTILITY (3) ------ Large Storage Unit Experimental Sensor Array Medium Armor Plating > --- WEAPON (2) ------- Improved Medium Laser Assault Rifle > --- INVENTORY (15) --- Ion Engine Improved Heat Sink Medium Storage Unit High-capacity Matter Pod (200) Structural Scanner Light Armor Plating Medium Armor Plating Particle Cannon Autogun Rocket Launcher Maul Peak State ------------ > --- POWER ------------ Ion Engine > --- PROPULSION ------- Armored Wheel Armored Wheel Armored Wheel > --- UTILITY ---------- Large Storage Unit Experimental Sensor Array Medium Armor Plating > --- WEAPON ----------- Improved Medium Laser Rocket Launcher > --- INVENTORY -------- Ion Engine Improved Heat Sink Medium Storage Unit High-capacity Matter Pod Structural Scanner Light Armor Plating Medium Armor Plating Particle Cannon Assault Rifle Autogun Maul [Rating: 25] Favorites ----------- Power Light Ion Engine Engine Light Ion Engine Propulsion Aluminum Leg Leg Aluminum Leg Wheel Armored Wheel Utility Medium Storage Unit Device Experimental Sensor Array Storage Medium Storage Unit Protection Light Armor Plating Weapon Assault Rifle Energy Gun Medium Laser Energy Cannon Beam Cannon Ballistic Gun Assault Rifle Launcher Rocket Launcher Build | -11 -10 -10 -9 ------- Run | Yrd Mat Min Mat Slots Evolved 2 | . . . 2 Power . | . . . . Propulsion 1 | . . . 1 Utility 1 | . . . 1 Weapon . | . . . . Parts Attached 38 | . 21 4 13 Power 5 | . 3 1 1 Engine 5 | . 3 1 1 Core . | . . . . Reactor . | . . . . Propulsion 10 | . 6 . 4 Treads . | . . . . Leg 7 | . 6 . 1 Wheel 3 | . . . 3 Hover . | . . . . Flight . | . . . . Utility 11 | . 5 2 4 Device 5 | . 3 1 1 Storage 2 | . 1 . 1 Processor . | . . . . Hackware . | . . . . Protection 4 | . 1 1 2 Artifact . | . . . . Weapon 12 | . 7 1 4 Energy Gun 3 | . 2 . 1 Energy Cannon 1 | . 1 . . Ballistic Gun 6 | . 4 . 2 Ballistic Cannon . | . . . . Launcher 2 | . . 1 1 Special Weapon . | . . . . Impact Weapon . | . . . . Slashing Weapon . | . . . . Piercing Weapon . | . . . . Special Melee Weapon . | . . . . Unidentified Prototypes 2 | . . 1 1 Parts Lost 3 | . 3 . . Power 2 | . 2 . . Propulsion . | . . . . Utility . | . . . . Weapon 1 | . 1 . . Highest Loss Streak 2 | . 2 . . To Critical Strikes . | . . . . Average Slot Usage (%) 91 | . 88 93 99 Engine 9 | . 9 7 11 Leg 26 | . 27 28 22 Wheel 1 | . . . 10 Device 7 | . 6 9 2 Storage 13 | . 14 14 11 Protection 5 | . 2 4 19 Energy Gun 6 | . 9 . 9 Energy Cannon 7 | . 3 14 1 Ballistic Gun 9 | . 13 3 5 Launcher 4 | . . 10 5 Naked Turns . | . . . . Heaviest Build 38 | 11 18 23 38 Greatest Support 36 | 20 20 20 36 Greatest Overweight (x) 4 | . 4 1 2 Average Overweight (x) . | . . . . Largest Inventory Capacity 15 | . 10 10 15 Average Capacity 9 | . 8 10 11 Most Carried 11 | . 10 10 11 Average Carried 8 | . 7 9 10 Final Capacity 15 | 8 10 10 15 Final Carried 11 | 6 10 10 11 Class Distribution -------------------- 78% | Mutant 21% | Scavenger-Mutant Dominant Class ---------------- Mutant | -10/Materials Mutant | -10/Mines Mutant | -9/Materials Resources | -11 -10 -10 -9 ----------- Run | Yrd Mat Min Mat Matter Collected 1075 | 200 474 306 95 Remotely . | . . . . Salvage Created 900 | . 616 17 267 Parts 52 | . 29 1 22 Haulers Intercepted 3 | . 1 . 2 Recyclers Shooed . | . . . . Parts Field Recycled . | . . . . Retrieved Matter . | . . . . Parts Self-Destructed . | . . . . Prevented . | . . . . Kills | -11 -10 -10 -9 ------- Run | Yrd Mat Min Mat Combat Hostiles Destroyed 23 | . 12 5 6 Guns 15 | . 12 . 3 Cannons 1 | . . 1 . AOE 7 | . . 4 3 Classes Destroyed 9 | . 6 1 2 Worker 2 | . 2 . . Builder 1 | . . . 1 Hauler 3 | . 1 . 2 Recycler 2 | . 2 . . Watcher 1 | . 1 . . Swarmer 9 | . 3 3 3 Grunt 11 | . 9 . 2 Sentry 1 | . . . 1 Assembled 2 | . . 2 . Best Kill Streak 8 | . 5 2 8 Combat Bots Only 5 | . 5 2 5 Max Kills in Single Turn 4 | . 3 2 4 Gunslinging . | . . . . Exploded 3 | . . 2 3 Melee . | . . . . Uniques/NPCs Destroyed . | . . . . Combat | -11 -10 -10 -9 -------- Run | Yrd Mat Min Mat Hostile Shots Fired 104 | . 66 4 34 Missed 36 | . 19 . 17 Damage Taken 958 | . 638 61 259 Core 218 | . 139 22 57 Absorbed by Shields . | . . . . Core Remaining (%) 67 | 100 . 35 . Volleys Fired 98 | . 73 7 18 Largest 2 | . 2 1 2 Hottest 80 | . 80 60 76 Shots Fired 178 | . 139 7 32 Gun 160 | . 131 . 29 Cannon 9 | . 8 1 . Launcher 9 | . . 6 3 Special . | . . . . Kinetic 88 | . 73 . 15 Thermal 81 | . 66 1 14 Explosive 9 | . . 6 3 Electromagnetic . | . . . . Robot Hit Streak 10 | . 10 3 4 Robot Miss Streak 5 | . 5 3 3 Penetration Max . | . . . . Secondary Targets 4 | . 3 . 1 Max Gunslinging Chain 1 | . 1 . 1 Shots Hit Robots 99 | . 86 3 10 Core Hits 52 | . 33 6 13 Critical Kills . | . . . . Critical Parts Destroyed . | . . . . Critical Strikes 11 | . 9 . 2 Burn 11 | . 9 . 2 Melee Attacks . | . . . . Impact . | . . . . Slashing . | . . . . Piercing . | . . . . Sneak Attacks . | . . . . Combat Hostiles . | . . . . Follow-up Attacks . | . . . . Damage Inflicted 2124 | . 1407 293 424 Guns 1237 | . 1015 . 222 Cannons 53 | . 35 18 . Explosions 834 | . 357 275 202 Melee . | . . . . Ramming . | . . . . Kinetic 648 | . 546 . 102 Thermal 999 | . 861 18 120 Explosive 477 | . . 275 202 Electromagnetic . | . . . . Impact . | . . . . Slashing . | . . . . Piercing . | . . . . Highest Corruption . | . . . . Average Corruption . | . . . . Corruption Purged . | . . . . Corruption Blocked . | . . . . Overload Shots . | . . . . Overflow Damage 81 | . 68 13 . Projectiles 13 | . . 13 . Explosions 68 | . 68 . . Melee . | . . . . Knockbacks . | . . . . Impact . | . . . . Kinetic . | . . . . Secondary . | . . . . Self-Inflicted Damage 169 | . 99 22 48 Shots 3 | . 1 1 1 Rammed . | . . . . Targets Rammed . | . . . . Kicked . | . . . . Crushed . | . . . . Highest Temperature 274 | . 274 20 192 Average Temperature 69 | . 73 10 60 Received Heat Transfer 363 | . 249 . 114 Siege Activations . | . . . . Robots Corrupted . | . . . . Combat Hostiles . | . . . . Parts Fried . | . . . . Impact Corruptions . | . . . . Robots Melted . | . . . . Combat Hostiles . | . . . . Parts Melted 5 | . 5 . . Heat Transferred 2803 | . 2359 37 407 Parts Sabotaged . | . . . . Parts Stolen . | . . . . Parts Stripped . | . . . . Power Chain Reactions . | . . . . Alert | -11 -10 -10 -9 ------- Run | Yrd Mat Min Mat Peak Influence 346 | . 346 120 232 Initial 34 | . . 34 26 Average 115 | . 173 42 72 Maximum Alert Level 1 | . 1 . 1 Low Security (%) 79 | . 62 100 89 Level 1 20 | . 37 . 10 Level 2 . | . . . . Level 3 . | . . . . Level 4 . | . . . . Level 5 . | . . . . High Security . | . . . . Max Security . | . . . . Squads Dispatched 4 | . 3 . 1 Investigation . | . . . . Extermination . | . . . . Reinforcement 4 | . 3 . 1 Assault . | . . . . Garrison . | . . . . Intercept . | . . . . Searches Triggered . | . . . . Construction Impeded 1 | . . . 1 Haulers Reinforced . | . . . . Active Scanning Responses . | . . . . Cargo Convoy Interrupts . | . . . . Stealth | -11 -10 -10 -9 --------- Run | Yrd Mat Min Mat Distress Signals 7 | . 6 . 1 Communications Jammed . | . . . . Distress Signals . | . . . . Times Spotted 47 | . 30 4 13 Peak Tracking Total 7 | . 5 3 7 Tactical Retreats 4 | . 3 1 . Traps | -11 -10 -10 -9 ------- Run | Yrd Mat Min Mat Traps Triggered 4 | . 4 . . Indirectly . | . . . . Trap Hack Attempts . | . . . . Triggered . | . . . . Disarmed . | . . . . Reprogrammed . | . . . . Reused . | . . . . Traps Extracted . | . . . . Installed . | . . . . Triggered . | . . . . Machines | -11 -10 -10 -9 ---------- Run | Yrd Mat Min Mat Machines Disabled 4 | . 3 1 . Max in Single Turn 2 | . 2 1 . Machines Repaired . | . . . . Machines Dismantled . | . . . . Machines Sabotaged . | . . . . Overloaded Fab Kills . | . . . . Hacking | -11 -10 -10 -9 --------- Run | Yrd Mat Min Mat Machines Accessed 8 | . 7 1 . Terminals 7 | . 6 1 . Fabricators . | . . . . Repair Stations . | . . . . Recycling Units 1 | . 1 . . Scanalyzers . | . . . . Garrison Access . | . . . . Total Hacks 21 | . 17 4 . Successful 9 | . 7 2 . Failed 11 | . 9 2 . Catastrophic 1 | . 1 . . Database Lockouts 1 | . 1 . . Manual 15 | . 15 . . Terminals 20 | . 16 4 . Fabricators . | . . . . Repair Stations . | . . . . Recycling Units 1 | . 1 . . Scanalyzers . | . . . . Garrison Access . | . . . . Terminal Hacks 4 | . 2 2 . Record 1 | . . 1 . Robot Analysis 1 | . 1 . . Zone Layout 2 | . 1 1 . Fabricator Hacks . | . . . . Repair Station Hacks . | . . . . Recycling Unit Hacks 1 | . 1 . . Retrieve Components 1 | . 1 . . Scanalyzer . | . . . . Garrison Access Hacks . | . . . . Unauthorized Hacks 4 | . 4 . . Terminals 4 | . 4 . . Botnet 4 | . 4 . . Fabricators . | . . . . Repair Stations . | . . . . Recycling Units . | . . . . Scanalyzers . | . . . . Garrison Access . | . . . . Data Cores Recovered . | . . . . Used . | . . . . Hacking Detections 5 | . 5 . . Full Trace Events . | . . . . Feedback Events . | . . . . Feedback Blocked . | . . . . Robot Schematics Acquired . | . . . . Robots Built . | . . . . Authchips . | . . . . Time . | . . . . Total Robot Build Rating . | . . . . Part Schematics Acquired . | . . . . Parts Built . | . . . . Authchips . | . . . . Time . | . . . . Total Part Build Rating . | . . . . Parts Repaired . | . . . . Time . | . . . . Parts Recycled . | . . . . Recycled Matter . | . . . . Retrieved Matter . | . . . . Retrieved Components 10 | . 10 . . Parts Scanalyzed . | . . . . Part Schematics Acquired . | . . . . Parts Damaged . | . . . . Bothacking | -11 -10 -10 -9 ------------ Run | Yrd Mat Min Mat Used RIF Installer . | . . . . Robots Hacked . | . . . . Non-combat . | . . . . Combat . | . . . . Robot Hacks Applied . | . . . . Relay Couplers Released . | . . . . Fabnet Peak Effective % . | . . . . Robots Rewired . | . . . . Allies Hacked . | . . . . Hacks Repelled . | . . . . Allies | -11 -10 -10 -9 -------- Run | Yrd Mat Min Mat Total Allies . | . . . . Largest Group . | . . . . Highest-Rated Group . | . . . . Highest-Rated Ally . | . . . . Total Orders . | . . . . Ally Attacks . | . . . . Total Damage . | . . . . Kills . | . . . . Allies Corrupted . | . . . . Allies Melted . | . . . . Intel | -11 -10 -10 -9 ------- Run | Yrd Mat Min Mat Robot Analysis Total 1 | . 1 . . Derelict Logs Recovered 1 | . . 1 . Drone Launches . | . . . . Drone Recoveries . | . . . . Exploration | -11 -10 -10 -9 ------------- Run | Yrd Mat Min Mat Turns Passed 2298 | . 1200 772 326 Spaces Moved 1461 | 1 786 470 204 Core 2 | . 2 . . Treads . | . . . . Legs 1409 | 1 784 470 154 Wheels 50 | . . . 50 Hover . | . . . . Flight . | . . . . Fastest Speed 90 | 120 100 120 90 Average Speed 129 | 120 120 151 114 Slowest Speed 250 | 120 250 190 190 Overloaded Moves . | . . . . Propulsion Burnouts . | . . . . Robots Hopped . | . . . . Cave-ins Triggered . | . . . . Exploration Rate (%) 49 | 2 98 74 22 Regions Visited 3 Branch Regions 1 Pre-discovered Areas . | . . . . Known Exits Taken . | . . . . Unknown Exits Taken 3 | 1 1 1 . Scrap Searched 1 | . . 1 . Spaces Dug . | . . . . Terrain Destroyed 106 | . 21 54 31 Melee . | . . . . Projectile . | . . . . AOE 106 | . 21 54 31 Terrain Rammed . | . . . . Walls Destroyed . | . . . . Machines Disabled . | . . . . Actions | -11 -10 -10 -9 --------- Run | Yrd Mat Min Mat Total 1692 | . 905 522 265 Wait 55 | . 6 36 13 Move 1458 | . 785 469 204 Hop . | . . . . Pick Up 18 | . 8 3 7 Fast Attach 17 | . 12 1 4 Attach 3 | . 1 . 2 Detach . | . . . . Swap 18 | . 8 3 7 Drop 25 | . 12 3 10 Fire 98 | . 73 7 18 Melee . | . . . . Ram . | . . . . Kick . | . . . . Crush . | . . . . Escape Stasis . | . . . . Rewire . | . . . . Trap . | . . . . Miscellaneous . | . . . . Route ------- -11/Scrapyard -10/Materials (discovered 5 exits: [*Mat x3] / *Min x2) -10/Mines (discovered 2 exits: [*Mat x2]) -9/Materials (discovered 1 exit: Min) History --------- Turn | Location | Event 1 | -11/Scrapyard | Discovered new exit (range 0) 1 | -11/Scrapyard | Entered Materials 55 | -10/Materials | Central database locked down 285 | -10/Materials | Discovered new exit (range 9) 309 | -10/Materials | Build established: Mutant 433 | -10/Materials | Discovered new exit (range 14) 496 | -10/Materials | Core integrity fell below 50% 588 | -10/Materials | Discovered new exit (range 10) 783 | -10/Materials | Discovered new exit (range 15) 932 | -10/Materials | Discovered new exit (range 8) 1201 | -10/Materials | Entered Mines 1252 | -10/Mines | Found a hidden stash of uninstalled traps 1289 | -10/Mines | Received a Rocket Launcher from a helpful Derelict 1320 | -10/Mines | Found a damaged Exp. Sensor Array with a note attached 1323 | -10/Mines | Found Prototype Device 1329 | -10/Mines | Identified Exp. Sensor Array 1349 | -10/Mines | Learned location of 1 exit from Materials 1383 | -10/Mines | Assembled infested the area 1388 | -10/Mines | Assisted by a Guerilla fighting off Assembled 1742 | -10/Mines | Discovered new exit (range 13) 1835 | -10/Mines | Discovered new exit (range 11) 1973 | -10/Mines | Entered Materials 1973 | -9/Materials | Evolved 2 slots: Propulsion x1, Utility x1 1974 | -9/Materials | Identified exit to Mines 2299 | -9/Materials | Self-destructed Last Messages --------------- 02266_ G-34 Mercenary suffers critical hit (Burn). 02266_ G-34 Mercenary destroyed. 02269_ U-05 Engineer lays Concrete. 02271_ U-05 Engineer builds a Door. 02272_ U-05 Engineer lays Concrete. 02276_ Acquired 44 matter. 02276_ U-05 Engineer lays Concrete. 02278_ U-05 Engineer builds a Wall. 02280_ G-34 Mercenary destroyed. 02280_ Switching to secondary target: G-47 Trooper. 02283_ ALERT: Construction progress impeded, dispatching reinforcements to local area. 02283_ U-05 Engineer destroyed. 02284_ U-05 Engineer builds a Wall. 02293_ Critical hit (Burn: +37). 02293_ U-05 Engineer lays Concrete. 02294_ U-05 Engineer destroyed. 02297_ U-05 Engineer lays Concrete. Map ----- +----------------------------------------------------+ | ??????????????????# #?????############ | | ??????????????????# #?????# #???? | | ??????????????????# #?##### = ! #???? | | ??????????????????# ### # =!! #???? | | ??????????????????# =+==!! #???? | | ??????????????????##+####? ### ! # #???? | | ????????????????????????# ####+##?## ## ! #???? | | ????????????????????????# ?????????# #########???? | | ????????????????????????#??????????# #???????????? | | ???????????????????????????????????# #???????????? | | ?????????????????????????w??? ?????# #???????????? | | ????????????????????????? ### ?????# #???????????? | | ????????????????????????#o= # ?????# #???????????? | | ????????????????????????#g==##?????# #???????????? | | ????????????????????????#*[=##?????# #???????????? | | ????????????????????????+!%u##?????# #???????????? | | ????????????????????????#%g=##?????# #???????????? | | ????????????????????????#==!##?????# #???????????? | | ????????????????????????#!|%*??????# #???????????? | | ????????????????????????#!!!!??????# #???????????? | | ????????????????????????#%*!#??????# #???????????? | | ???????????????# ???????#*!!#??????# #???????????? | | ???????????????? ??????# #??????# #???????????? | | ????????????????? ????# !!########+##??????????? | | ??????????????????? ???#! !# #??????????? | | ???????????? #######+###@! # #??????????? | | ??????????? # #??????????? | | ??????????? # #??????????? | | ??????????? # """ """ #??????????? | | ????????????############# + """ """ #??????????? | | ????????????????????????# # """ """ #??????????? | | ????????????????????????# g# #??????????? | | ????????????????????????# ###########??????????? | | ??????????????????????? g????????????????????? | | ??????????????????????! ????????????????????? | | ?????????????????????!! """???????????????????? | | ????????????????????#!! "T"???????????????????? | | ????????????????????#// ???????????????????? | | ????????????????????#// ???????????????????? | | ????????????????????##### ???????????????????? | | ???????????????????????? ????????????????????? | | ???????????????????????? ?????????????????????? | | ???????????????????????? ??????????????????????? | | ????????????????????????###??????????????????????? | | ?????????????????????????????????????????????????? | | ?????????????????????????????????????????????????? | | ?????????????????????????????????????????????????? | | ?????????????????????????????????????????????????? | | ?????????????????????????????????????????????????? | | ?????????????????????????????????????????????????? | +----------------------------------------------------+ Best States ------------- Heat Dissipation 39 Energy Generation 10 Energy Capacity 250 Matter Stores 300 Matter Capacity 300 Sight Range 16 Robot Scan Range 20 Terrain Scan Density 10 Armor Coverage 375 Evasion (%) 55 Item Schematics ----------------- None Robot Schematics ------------------ None Fabricated ------------ Nothing Alien Tech Used ----------------- None Achievements -------------- None Challenges ------------ None Game ------ Seed WeldingDispersionDevice Manual? 0 Play Time 00:23:42 Cumulative 282.9 hours Start 2024.05.03 @ 16:18:04 End 2024.05.03 @ 16:40:02 Sessions 1 Manual Loads 0 Difficulty Rogue Special Mode None Game No. 164 Rogue 120 Adventurer 44 Explorer 0 Win Type - Total 2 Types 2/0/0/0/0/0/0/0/0 Lore% 58 Gallery% 62 Achievement% 58 Wizard Run 0 Options --------- Layout 2 ASCII 0 Keyboard 1 Movement Vi Keybinds 1 Fullscreen 2 Font 24/Smallcaps Map View 50x44 Zoom Use 0% Tactical HUD 1 Map Filters NONE Filters NONE Steam 1 RUN: ad9afff1-af91-4171-ac2f-825eabea86c2